Cogmind - Beta 15 @@@ ROGUE MODE // 2025.07.05 @ 05:09:30 Player: puppuppit Result: Destroyed by Y-64 Sentinel with Wave Gun Performance ------------- Evolutions (5) 2500 Regions Visited (10) 2000 Robots Destroyed (242) 1210 Value Destroyed (7865) 7865 Prototype IDs (35) 700 Alien Tech Used (0) 0 Bonus (5474) 5474 TOTAL SCORE: 19749 Bonus ------- Triggered High Security 500 High Alert Combat Kills 3590 Follower Combat Kills 745 Registered with UFD 300 Met Optimus in HQ 500 Friendly Fire -161 Cogmind --------- Core Integrity 0/1000 Matter 291/300 Energy 99/100 System Corruption 26% Temperature Cool (9) Movement Core (50) Location -5/Extension Parts ------- > --- POWER (2) -------- (None) > --- PROPULSION (5) --- (None) > --- UTILITY (6) ------ A0-MCA's Component Scanner > --- WEAPON (4) ------- (None) > --- INVENTORY (5) ---- Antigrav Array Improved Matter Compressor (300) Experimental Targeting Computer Linear Accelerator Peak State ------------ > --- POWER ------------ Micro Fission Core Micro Fission Core > --- PROPULSION ------- Combat Airjet Combat Airjet Antigrav System Antigrav System Antigrav System > --- UTILITY ---------- Medium Storage Unit Experimental Targeting Computer Advanced Recoil Stabilizer Hacking Suite Advanced System Shield A0-MCA's Component Scanner > --- WEAPON ----------- Slug Cannon Slug Cannon Slug Cannon Scatter Rocket Array > --- INVENTORY -------- Antigrav Array Improved Cooling System Improved Coolant Injector Improved Matter Compressor Experimental Targeting Computer Advanced Recoil Stabilizer Advanced Field Recycling Unit Slug Cannon Linear Accelerator [Rating: 95] Favorites ----------- Power Light Ion Engine Engine Light Ion Engine Power Core Light Fission Core Reactor Light Antimatter Reactor Propulsion Light Treads Treads Light Treads Leg Carbon-fiber Leg Hover Unit Antigrav System Flight Unit Cesium-ion Thruster Utility Large Storage Unit Device Improved Terrain Scanner Storage Large Storage Unit Processor Experimental Terrain Scan Processor Hackware Hacking Suite Protection Hardened Light Armor Plating Weapon Light Assault Rifle Energy Gun Medium Laser Energy Cannon Subdweller Beam Cannon Ballistic Gun Light Assault Rifle Ballistic Cannon Slug Cannon Launcher Scatter Rocket Array Build | -11 -10 -10 -10 -9 -9 -6 -5 -5 -5 -5 ------- Run | Yrd Mat Min Sub Rec Scr Fac Fac Was Fac Ext Slots Evolved 10 | . . . . . . 8 2 . . . Power 1 | . . . . . . 1 . . . . Propulsion 3 | . . . . . . 3 . . . . Utility 4 | . . . . . . 2 2 . . . Weapon 2 | . . . . . . 2 . . . . Parts Attached 163 | 7 8 2 7 2 9 82 29 10 7 . Power 23 | 1 1 1 1 . 2 13 2 1 1 . Engine 13 | 1 1 1 . . 2 6 1 . 1 . Core 9 | . . . 1 . . 6 1 1 . . Reactor 1 | . . . . . . 1 . . . . Propulsion 39 | 2 . . 2 1 1 24 8 . 1 . Treads 5 | 2 . . 2 1 . . . . . . Leg 20 | . . . . . 1 19 . . . . Wheel . | . . . . . . . . . . . Hover 13 | . . . . . . 4 8 . 1 . Flight 1 | . . . . . . 1 . . . . Utility 52 | 2 4 . . . 5 24 12 3 2 . Device 27 | 1 . . . . 1 14 7 3 1 . Storage 5 | 1 2 . . . 1 1 . . . . Processor 6 | . 1 . . . 1 2 2 . . . Hackware 5 | . . . . . . 2 2 . 1 . Protection 9 | . 1 . . . 2 5 1 . . . Artifact . | . . . . . . . . . . . Weapon 49 | 2 3 1 4 1 1 21 7 6 3 . Energy Gun 4 | 1 . . . . . . 2 . 1 . Energy Cannon 1 | . . . 1 . . . . . . . Ballistic Gun 35 | 1 2 1 2 1 1 19 4 2 2 . Ballistic Cannon 4 | . . . . . . . . 4 . . Launcher 5 | . 1 . 1 . . 2 1 . . . Special Weapon . | . . . . . . . . . . . Impact Weapon . | . . . . . . . . . . . Slashing Weapon . | . . . . . . . . . . . Piercing Weapon . | . . . . . . . . . . . Special Melee Weapon . | . . . . . . . . . . . Unidentified Prototypes 5 | . . . . . . 5 . . . . Corrupted Parts 5 | . . . . . 1 3 . . 1 . System Corruption 32 | . . . . . 4 17 . . 11 . Parts Lost 78 | . . . 2 . . 41 12 . 23 . Power 9 | . . . . . . 6 . . 3 . Propulsion 23 | . . . 1 . . 10 6 . 6 . Utility 17 | . . . . . . 11 . . 6 . Weapon 29 | . . . 1 . . 14 6 . 8 . Highest Loss Streak 19 | . . . 1 . . 7 4 . 19 . To Critical Strikes 1 | . . . . . . . . . 1 . Average Backups 12 | . 8 14 14 13 13 13 9 9 8 4 Power . | . . . . . . 1 1 . . . Propulsion 2 | . 1 3 2 3 2 2 . . 1 1 Utility 5 | . 5 9 7 5 5 4 6 6 5 2 Weapon 3 | . 2 2 4 5 4 3 1 1 1 1 Tool/Special . | . . . . . . . . . . . Unused Backups 49 | . 2 2 2 1 15 14 5 . 4 4 Power 2 | . . . . . . 1 . . 1 . Propulsion 6 | . . . . . 3 2 . . . 1 Utility 29 | . 1 2 2 1 7 7 5 . 2 2 Weapon 12 | . 1 . . . 5 4 . . 1 1 Tool/Special . | . . . . . . . . . . . Average Slot Usage (%) 90 | . 100 100 99 100 83 93 83 99 86 5 Engine 6 | . 14 14 7 . 9 6 . . 1 . Core 4 | . . . 6 14 2 4 8 11 7 . Treads 10 | . 28 28 27 28 9 . . . . . Leg 8 | . . . . . 7 26 . . . . Hover 5 | . . . . . . . 24 29 25 . Device 7 | . . . 9 14 10 10 7 5 7 . Storage 9 | . 14 14 14 14 12 5 5 5 4 . Processor 5 | . 9 . . . 5 4 10 11 10 5 Hackware 1 | . . . . . . 1 6 11 6 . Protection 3 | . 3 14 4 . 1 3 . . . . Ballistic Gun 21 | . 26 27 23 28 24 24 14 3 . . Ballistic Cannon 1 | . . . . . . . . 18 17 . Peak Build Rating 95 | 9 10 10 15 15 44 88 89 94 95 12 Average Rating 41 | 5 8 10 12 14 32 63 69 90 79 12 On Entrance 30 | . 9 10 10 14 15 42 45 85 91 12 Naked Turns . | . . . . . . . . . . . Heaviest Build 88 | 12 30 30 35 30 40 88 50 66 64 . Greatest Support 115 | 40 40 40 40 40 55 115 57 57 58 3 Greatest Overweight (x) 1 | . . . 1 . . 1 1 1 1 . Average Overweight (x) . | . . . . . . . . . . . Largest Inventory Capacity 15 | 8 15 15 15 15 15 15 10 10 10 5 Average Capacity 13 | 7 11 15 15 15 15 14 10 10 9 5 Most Carried 15 | 1 15 15 15 15 15 15 10 10 10 5 Average Carried 12 | . 8 14 14 14 13 13 9 9 9 5 Final Capacity 15 | 8 15 15 15 15 15 15 10 10 10 5 Final Carried 15 | 1 15 15 14 15 15 15 10 10 10 5 Class Distribution -------------------- 39% | Mutant 20% | Scavenger-Mutant 20% | Scavenger-Gunner 7% | Hacker-Gunner 5% | Scavenger-Tank Dominant Class ---------------- Mutant | -10/Materials Mutant | -10/Mines Scavenger-Mutant | -10/Subcaves Scavenger-Mutant | -9/Recycling Mutant | -9/Scraptown Scavenger-Gunner | -6/Factory Hacker-Gunner | -5/Factory Hacker-Gunner | -5/Waste Scavenger-Gunner | -5/Factory Mutant | -5/Extension Resources | -11 -10 -10 -10 -9 -9 -6 -5 -5 -5 -5 ----------- Run | Yrd Mat Min Sub Rec Scr Fac Fac Was Fac Ext Matter Collected 9401 | 304 294 130 279 152 97 5141 1457 354 1189 4 Remotely . | . . . . . . . . . . . Salvage Created 9697 | 243 495 25 403 272 . 5503 1383 264 1109 . Parts 434 | 23 36 3 21 7 . 228 58 9 49 . Haulers Intercepted 11 | . 2 . . . . 6 3 . . . Recyclers Shooed 17 | 1 2 1 . . . 9 1 . 3 . Parts Field Recycled 30 | . . . . . . . 14 11 5 . Retrieved Matter 1046 | . . . . . . . 417 440 189 . Parts Self-Destructed 11 | . . . 11 . . . . . . . Prevented . | . . . . . . . . . . . Kills | -11 -10 -10 -10 -9 -9 -6 -5 -5 -5 -5 ------- Run | Yrd Mat Min Sub Rec Scr Fac Fac Was Fac Ext Combat Hostiles Destroyed 148 | . 10 4 10 1 . 75 22 . 26 . Guns 61 | . 5 . 3 1 . 45 6 . 1 . Cannons 13 | . . . 2 . . . . . 11 . AOE 74 | . 5 4 5 . . 30 16 . 14 . Classes Destroyed 18 | 3 4 . 2 1 . 8 . . . . Worker 29 | 2 4 . . . . 10 9 . 4 . Builder 10 | . . . . . . 7 . . 3 . Tunneler 8 | 8 . . . . . . . . . . Hauler 11 | . 2 . . . . 6 3 . . . Recycler 24 | 1 1 . . 3 . 13 3 . 3 . Mechanic 2 | . . . . . . 1 . . 1 . Operator 3 | . . . . . . 2 . . 1 . Turret 1 | . . . 1 . . . . . . . Watcher 5 | . 1 . . . . 2 . . 2 . Swarmer 35 | . 5 4 2 . . 11 5 . 8 . Saboteur 2 | . . . . . . 2 . . . . Grunt 70 | . 5 . 1 . . 40 14 . 10 . Brawler 4 | . . . . . . 3 . . 1 . Duelist 4 | . . . . . . 2 . . 2 . Sentry 9 | . . . . 1 . 6 . . 2 . Hunter 7 | . . . . . . 7 . . . . Programmer 10 | . . . . . . 4 3 . 3 . Subdweller 8 | . . . 8 . . . . . . . Best Kill Streak 14 | 4 3 2 3 3 . 14 14 . 7 . Combat Bots Only 14 | . 3 2 2 1 . 10 14 . 5 . Max Kills in Single Turn 6 | 1 3 2 2 1 . 6 4 . 6 . Gunslinging . | . . . . . . . . . . . Exploded 5 | . 3 2 2 . . 4 4 . 5 . Melee . | . . . . . . . . . . . Uniques/NPCs Destroyed . | . . . . . . . . . . . Combat | -11 -10 -10 -10 -9 -9 -6 -5 -5 -5 -5 -------- Run | Yrd Mat Min Sub Rec Scr Fac Fac Was Fac Ext Hostile Shots Fired 1039 | . 46 4 55 . . 593 72 . 260 9 Missed 349 | . 10 . 21 . . 181 28 . 106 3 Hits 690 | . 36 4 34 . . 412 44 . 154 6 Melee 7 | . . . . . . 7 . . . . Projectile 683 | . 36 4 34 . . 405 44 . 154 6 AOE 1 | . . . 1 . . . . . . . Critical Strikes 21 | . 1 . . . . 11 3 . 6 . Part Disruptions 1 | . . . . . . . . . 1 . Damage Taken 11626 | . 400 101 486 . . 6482 1008 . 3005 144 Core 1926 | . 108 9 55 . . 745 90 . 778 141 Absorbed by Shields 47 | . . . . . . . 47 . . . Redirected to Shielding 27 | . . . . . . 27 . . . . Ignored by Resistances 204 | . . . . . . 204 . . . . Regen/Repaired (Parts) 98 | . . . . . . . 98 . . . Core Remaining (%) 47 | 100 . . . . 31 12 . . . . Volleys Fired 476 | 34 66 5 33 8 . 206 48 15 61 . Largest 4 | 2 2 2 2 2 . 4 4 4 4 . Hottest 160 | 70 70 50 100 43 . 129 150 160 160 . Shots Fired 1390 | 68 129 9 52 16 . 778 95 54 189 . Gun 1094 | 68 126 7 30 16 . 762 80 . 5 . Cannon 242 | . . . 9 . . . . 54 179 . Launcher 54 | . 3 2 13 . . 16 15 . 5 . Special . | . . . . . . . . . . . Kinetic 1268 | 34 110 7 32 16 . 762 69 54 184 . Thermal 70 | 34 16 . 9 . . . 11 . . . Explosive 52 | . 3 2 11 . . 16 15 . 5 . Electromagnetic . | . . . . . . . . . . . Robot Hit Streak 21 | 7 8 1 21 5 . 18 9 5 9 . Robot Miss Streak 12 | 3 3 3 1 1 . 11 6 4 12 . Penetration Max 1 | . . . . . . 1 . . . . Secondary Targets 13 | . 1 . . . . 11 1 . . . Max Gunslinging Chain 1 | . 1 . . . . 1 1 . . . Shots Hit Robots 836 | 39 85 3 35 10 . 481 71 21 91 . Core Hits 628 | 15 41 6 26 6 . 327 109 5 93 . Critical Kills 12 | . 1 . . . . 7 . . 4 . Critical Parts Destroyed 22 | . 1 . . 1 . 12 3 . 5 . Critical Strikes 46 | 3 6 . . 1 . 19 3 3 11 . Burn 7 | 3 4 . . . . . . . . . Destroy 39 | . 2 . . 1 . 19 3 3 11 . Melee Attacks . | . . . . . . . . . . . Impact . | . . . . . . . . . . . Slashing . | . . . . . . . . . . . Piercing . | . . . . . . . . . . . Sneak Attacks . | . . . . . . . . . . . Combat Hostiles . | . . . . . . . . . . . Follow-up Attacks . | . . . . . . . . . . . Damage Inflicted 27704 | 423 936 199 1496 129 . 14073 3982 787 5673 6 Guns 11886 | 423 640 14 292 129 . 8886 1435 . 67 . Cannons 3808 | . . . 109 . . . . 787 2912 . Explosions 11974 | . 291 185 1095 . . 5172 2547 . 2684 . Melee . | . . . . . . . . . . . Ramming 36 | . 5 . . . . 15 . . 10 6 Kinetic 15201 | 139 502 14 520 129 . 8886 1245 787 2979 . Thermal 2578 | 284 138 . 109 . . 909 350 . 788 . Explosive 9848 | . 291 185 867 . . 4222 2387 . 1896 . Electromagnetic 41 | . . . . . . 41 . . . . Impact . | . . . . . . . . . . . Slashing . | . . . . . . . . . . . Piercing . | . . . . . . . . . . . Highest Corruption 26 | . . . . . 4 17 1 . 26 26 Average Corruption 7 | . . . . . 4 6 1 . 7 26 Corruption Purged 3 | . . . . . . 2 1 . . . Corruption Blocked . | . . . . . . . . . . . Effects 68 | . . . . . . 47 . . 11 10 Message Errors 18 | . . . . . . 10 . . 5 3 Matter Fused 11 | . . . . . . 8 . . . 3 Heat Flow Errors 5 | . . . . . . 4 . . 1 . Energy Discharges 3 | . . . . . . 3 . . . . Parts Rejected 2 | . . . . . . . . . 2 . Parts Fused 3 | . . . . . . 3 . . . . Data Loss (minor) 7 | . . . . . . 6 . . . 1 Data Loss (major) 2 | . . . . . . 2 . . . . Misfires 3 | . . . . . . 3 . . . . Alerts 5 | . . . . . . 3 . . 1 1 Misdirections 4 | . . . . . . 2 . . . 2 Weapon Failures 5 | . . . . . . 3 . . 2 . Overload Shots . | . . . . . . . . . . . Overflow Damage 691 | . 3 . 24 . . 269 174 5 216 . Projectiles 91 | . . . . . . . . 5 86 . Explosions 600 | . 3 . 24 . . 269 174 . 130 . Melee . | . . . . . . . . . . . Knockbacks 17 | . . . . . . . . . 17 . Impact . | . . . . . . . . . . . Kinetic 16 | . . . . . . . . . 16 . Secondary 1 | . . . . . . . . . 1 . Self-Inflicted Damage 509 | . 10 23 22 . . 286 81 . 84 3 Shots 17 | . 1 1 1 . . 7 3 . 4 . Rammed 7 | . 1 . . . . . . . 4 2 Targets Rammed 10 | . 1 . . . . 3 . . 4 2 Kicked 3 | . . . . . . 3 . . . . Crushed . | . . . . . . . . . . . Highest Temperature 556 | 170 220 20 54 12 . 556 221 286 261 . Average Temperature 79 | 63 54 8 14 5 . 109 48 45 81 . Received Heat Transfer 2941 | . 201 . 144 . . 1800 175 . 603 18 Effects 9 | . . . . . . 6 . 2 1 . Shutdowns 3 | . . . . . . 3 . . . . Energy Bleed 3 | . . . . . . 2 . . 1 . Interference 2 | . . . . . . . . 2 . . Short Circuit 1 | . . . . . . 1 . . . . Siege Activations . | . . . . . . . . . . . Martial Activations . | . . . . . . . . . . . Shielding Activations . | . . . . . . . . . . . Robots Disrupted . | . . . . . . . . . . . Combat Hostiles . | . . . . . . . . . . . Robots Corrupted . | . . . . . . . . . . . Combat Hostiles . | . . . . . . . . . . . Parts Fried . | . . . . . . . . . . . Impact Corruptions . | . . . . . . . . . . . Robots Melted . | . . . . . . . . . . . Combat Hostiles . | . . . . . . . . . . . Parts Melted 13 | 7 2 . 2 . . 1 1 . . . Heat Transferred 3557 | 1073 703 . 148 . . 700 433 . 500 . Parts Sabotaged 2 | . . . . . . 2 . . . . Parts Stolen . | . . . . . . . . . . . Parts Stripped . | . . . . . . . . . . . Power Chain Reactions 1 | . . . . . . . . . 1 . Alert | -11 -10 -10 -10 -9 -9 -6 -5 -5 -5 -5 ------- Run | Yrd Mat Min Sub Rec Scr Fac Fac Was Fac Ext Maximum Alert Level 5 | . . . . . . 5 5 3 5 3 Low Security (%) 36 | 100 100 100 . 100 . 12 . . . . Level 1 3 | . . . . . . 9 . . . . Level 2 9 | . . . . . . 5 . 87 28 . Level 3 23 | . . . . . . 44 5 12 25 100 Level 4 17 | . . . . . . 20 56 . 24 . Level 5 7 | . . . . . . . 38 . 21 . High Security 2 | . . . . . . 6 . . . . Max Security . | . . . . . . . . . . . Peak Influence 2133 | 10 103 103 . 74 . 1843 2084 718 2133 1075 Initial 1100 | . . 22 . 52 . . 1100 718 407 1045 Average 716 | 2 33 24 . 21 . 890 1535 651 1147 1048 Influence Increases 7733 | 55 390 189 187 59 . 2946 1470 24 2338 75 Destroy 0b10 Robot/C 3280 | . 200 120 140 40 . 1680 440 . 660 . Destroy 0b10 Robot/NC 485 | 55 40 . . 15 . 215 75 . 85 . Destroy Leader 602 | . 46 20 . . . 376 56 . 104 . Allied During Kill 187 | . . 29 17 4 . 113 . . 24 . Successful Hack 176 | . 53 . . . . 56 46 . 21 . Select Force Hacks 50 | . . . . . . . . . 50 . Disable Machine 780 | . . . . . . 255 150 . 375 . Destroy Structure 1063 | . 21 20 . . . 206 418 24 374 . Partial Spotted 60 | . . . . . . 30 . . 30 . Lose Combat Pursuer 1050 | . 30 . 30 . . 15 285 . 615 75 Influence Decreases 6890 | 55 333 203 121 168 . 1103 1458 1494 787 1168 Entered New Map 3652 | . . 35 23 57 . . 940 1334 175 1088 Time Decay 2395 | 55 333 168 88 111 . 640 398 160 362 80 Lost Part 743 | . . . 10 . . 383 120 . 230 . Lost Ally 100 | . . . . . . 80 . . 20 . Squads Dispatched 65 | . 4 1 . . . 31 15 . 13 1 Investigation 18 | . 2 1 . . . 4 6 . 4 1 Extermination 8 | . . . . . . 4 2 . 2 . Reinforcement 18 | . 2 . . . . 10 3 . 3 . Assault 12 | . . . . . . 7 4 . 1 . Garrison 9 | . . . . . . 6 . . 3 . Intercept . | . . . . . . . . . . . Searches Triggered . | . . . . . . . . . . . Construction Impeded 7 | . . . . . . 4 2 . 1 . Haulers Reinforced 5 | . . . . . . 3 1 . 1 . Active Scanning Responses . | . . . . . . . . . . . Cargo Convoy Interrupts . | . . . . . . . . . . . Stealth | -11 -10 -10 -10 -9 -9 -6 -5 -5 -5 -5 --------- Run | Yrd Mat Min Sub Rec Scr Fac Fac Was Fac Ext Distress Signals 11 | . 3 . . . . 2 1 . 5 . Communications Jammed . | . . . . . . . . . . . Distress Signals . | . . . . . . . . . . . Times Spotted 267 | . 24 6 17 1 . 90 40 1 82 6 Peak Tracking Total 16 | . 5 3 6 1 . 8 16 . 16 5 Tactical Retreats 23 | . 1 . 1 . . 1 4 . 14 2 Traps | -11 -10 -10 -10 -9 -9 -6 -5 -5 -5 -5 ------- Run | Yrd Mat Min Sub Rec Scr Fac Fac Was Fac Ext Traps Triggered 11 | . 2 2 . . . 2 3 . 2 . Indirectly 1 | . . . . . . 1 . . . . Trap Hack Attempts . | . . . . . . . . . . . Triggered . | . . . . . . . . . . . Disarmed . | . . . . . . . . . . . Reprogrammed . | . . . . . . . . . . . Reused . | . . . . . . . . . . . Traps Extracted . | . . . . . . . . . . . Installed . | . . . . . . . . . . . Triggered . | . . . . . . . . . . . Machines | -11 -10 -10 -10 -9 -9 -6 -5 -5 -5 -5 ---------- Run | Yrd Mat Min Sub Rec Scr Fac Fac Was Fac Ext Machines Disabled 56 | . . . 4 . . 17 10 . 25 . Max in Single Turn 7 | . . . 2 . . 6 4 . 7 . Machines Repaired . | . . . . . . . . . . . Machines Dismantled . | . . . . . . . . . . . Machines Sabotaged . | . . . . . . . . . . . Overloaded Fab Kills 2 | . . . . . . . . . 2 . Hacking | -11 -10 -10 -10 -9 -9 -6 -5 -5 -5 -5 --------- Run | Yrd Mat Min Sub Rec Scr Fac Fac Was Fac Ext Machines Accessed 38 | . 6 2 1 1 . 13 9 . 5 1 Terminals 14 | . 5 . . 1 . 7 . . . 1 Fabricators 6 | . . . . . . 2 2 . 2 . Repair Stations 3 | . . . . . . . 3 . . . Recycling Units 11 | . 1 . . . . 4 4 . 2 . Scanalyzers . | . . . . . . . . . . . Garrison Access 1 | . . . . . . . . . 1 . Total Hacks 112 | . 23 2 1 2 . 38 28 . 13 5 Successful 56 | . 14 2 1 1 . 18 14 . 6 . Failed 56 | . 9 . . 1 . 20 14 . 7 5 Catastrophic 8 | . . . . . . 4 2 . . 2 Database Lockouts . | . . . . . . . . . . . Manual 74 | . 21 . . 2 . 29 13 . 9 . Terminals 50 | . 21 . . 2 . 22 . . . 5 Fabricators 16 | . . . . . . 4 7 . 5 . Repair Stations 9 | . . . . . . . 9 . . . Recycling Units 31 | . 2 . . . . 12 12 . 5 . Scanalyzers . | . . . . . . . . . . . Garrison Access 3 | . . . . . . . . . 3 . Terminal Hacks 16 | . 8 2 1 . . 5 . . . . Part Schematic 1 | . . . . . . 1 . . . . Robot Analysis 7 | . 6 . . . . 1 . . . . Prototype ID Bank 1 | . 1 . . . . . . . . . Open Door 2 | . . 2 . . . . . . . . Branch Access Points 1 | . . . . . . 1 . . . . Terminal Index 2 | . 1 . . . . 1 . . . . Locate Traps 1 | . . . . . . 1 . . . . Proto ID Catalog 1 | . . . 1 . . . . . . . Fabricator Hacks 4 | . . . . . . 1 2 . 1 . Network Status 1 | . . . . . . 1 . . . . Load Schematic 1 | . . . . . . . 1 . . . Build 2 | . . . . . . . 1 . 1 . Repair Station Hacks 4 | . . . . . . . 4 . . . Scan Component 3 | . . . . . . . 3 . . . Repair 1 | . . . . . . . 1 . . . Recycling Unit Hacks 2 | . . . . . . 1 . . 1 . Retrieve Components 2 | . . . . . . 1 . . 1 . Scanalyzer . | . . . . . . . . . . . Garrison Access Hacks . | . . . . . . . . . . . Unauthorized Hacks 30 | . 6 . . 1 . 11 8 . 4 . Terminals 10 | . 5 . . 1 . 4 . . . . Botnet 10 | . 5 . . 1 . 4 . . . . Fabricators 5 | . . . . . . 2 1 . 2 . Report 1 | . . . . . . 1 . . . . Haulers 3 | . . . . . . 1 1 . 1 . Overload 1 | . . . . . . . . . 1 . Repair Stations . | . . . . . . . . . . . Recycling Units 14 | . 1 . . . . 5 7 . 1 . Reject 5 | . 1 . . . . 2 2 . . . Recyclers 1 | . . . . . . . 1 . . . Fedlink 6 | . . . . . . 2 4 . . . Scrapoids 1 | . . . . . . 1 . . . . Scraphulk 1 | . . . . . . . . . 1 . Scanalyzers . | . . . . . . . . . . . Garrison Access 1 | . . . . . . . . . 1 . Intercept 1 | . . . . . . . . . 1 . Data Cores Recovered . | . . . . . . . . . . . Used . | . . . . . . . . . . . Hacking Detections 30 | . 6 . . 1 . 13 7 . 2 1 Full Trace Events 6 | . 1 . . . . 1 2 . 1 1 Feedback Events 1 | . . . . . . . . . 1 . Corruption 1 | . . . . . . . . . 1 . Feedback Blocked . | . . . . . . . . . . . Robot Schematics Acquired . | . . . . . . . . . . . Robots Built . | . . . . . . . . . . . Authchips . | . . . . . . . . . . . Time 169 | . . . . . . . . . 169 . Total Robot Build Rating . | . . . . . . . . . . . Part Schematics Acquired 1 | . . . . . . 1 . . . . Parts Built 2 | . . . . . . . 2 . . . Authchips . | . . . . . . . . . . . Time 47 | . . . . . . . 47 . . . Total Part Build Rating 10 | . . . . . . . 10 . . . Parts Repaired 1 | . . . . . . . 1 . . . Time 26 | . . . . . . . 26 . . . Parts Recycled . | . . . . . . . . . . . Recycled Matter . | . . . . . . . . . . . Retrieved Matter . | . . . . . . . . . . . Retrieved Components 7 | . . . . . . 1 . . 6 . Parts Scanalyzed . | . . . . . . . . . . . Part Schematics Acquired . | . . . . . . . . . . . Parts Damaged . | . . . . . . . . . . . Bothacking | -11 -10 -10 -10 -9 -9 -6 -5 -5 -5 -5 ------------ Run | Yrd Mat Min Sub Rec Scr Fac Fac Was Fac Ext Used RIF Installer . | . . . . . . . . . . . Robots Hacked . | . . . . . . . . . . . Non-combat . | . . . . . . . . . . . Combat . | . . . . . . . . . . . Robot Hacks Applied . | . . . . . . . . . . . Relay Couplers Released . | . . . . . . . . . . . Fabnet Peak Effective % . | . . . . . . . . . . . Robots Rewired . | . . . . . . . . . . . Allies Hacked . | . . . . . . . . . . . Hacks Repelled . | . . . . . . . . . . . Allies | -11 -10 -10 -10 -9 -9 -6 -5 -5 -5 -5 -------- Run | Yrd Mat Min Sub Rec Scr Fac Fac Was Fac Ext Total Allies 13 | . . 6 . . 1 5 . . 1 . Largest Group 6 | . . 5 5 2 3 6 . . 1 . Highest-Rated Group 193 | . . 78 78 38 88 193 . . 123 . Highest-Rated Ally 123 | . . 31 31 31 55 55 . . 123 . Total Orders 1 | . . . . . 1 . . . . . STAY 1 | . . . . . 1 . . . . . Ally Attacks 158 | . . 5 59 6 . 69 . . 19 . Total Damage 3043 | . . 68 655 22 . 1412 . . 886 . Kills 30 | . . 2 5 1 . 12 . . 10 . Allies Corrupted . | . . . . . . . . . . . Allies Melted . | . . . . . . . . . . . Intel | -11 -10 -10 -10 -9 -9 -6 -5 -5 -5 -5 ------- Run | Yrd Mat Min Sub Rec Scr Fac Fac Was Fac Ext Active Infowar (turns) 4601 | 17 46 . 646 314 2375 774 429 . . . Terrain 3624 | 17 46 . 646 314 2375 226 . . . . Structural 758 | . . . . . . 329 429 . . . Traps 219 | . . . . . . 219 . . . . Robot Analysis Total 7 | . 6 . . . . 1 . . . . Derelict Logs Recovered 4 | . . 1 1 . 2 . . . . . Drone Launches . | . . . . . . . . . . . Drone Recoveries . | . . . . . . . . . . . Exploration | -11 -10 -10 -10 -9 -9 -6 -5 -5 -5 -5 ------------- Run | Yrd Mat Min Sub Rec Scr Fac Fac Was Fac Ext Turns Passed 11084 | 245 1004 832 906 314 2734 2777 956 323 824 169 Spaces Moved 7761 | 91 498 467 494 177 1790 1496 1267 373 823 285 Core 358 | 6 . . . . . . . . 67 285 Treads 2276 | 85 498 467 494 177 555 . . . . . Legs 2588 | . . . . . 1235 1353 . . . . Wheels . | . . . . . . . . . . . Hover 2539 | . . . . . . 143 1267 373 756 . Flight . | . . . . . . . . . . . Fastest Speed 40 | 50 160 160 160 160 130 48 40 53 50 50 Average Speed 109 | 152 160 160 160 160 139 116 51 56 59 50 Slowest Speed 240 | 160 160 160 240 160 160 200 124 117 117 50 Overloaded Moves . | . . . . . . . . . . . Propulsion Burnouts . | . . . . . . . . . . . Robots Hopped . | . . . . . . . . . . . Potential Cave-ins . | . . . . . . . . . . . Cave-ins Triggered 1 | . . . . . . 1 . . . . Exploration Rate (%) 48 | 6 77 84 38 31 84 38 29 97 22 25 Regions Visited 10 Branch Regions 5 Pre-discovered Areas 2 | . . . . . 1 1 . . . . Known Exits Taken . | . . . . . . . . . . . Unknown Exits Taken 8 | 1 1 1 1 1 1 1 . . 1 . Scrap Searched 7 | . . 2 . . 5 . . . . . Spaces Dug 39 | . . . . . . 10 15 . 14 . Terrain Destroyed 869 | . 26 20 79 . . 234 301 13 196 . Melee . | . . . . . . . . . . . Projectile 74 | . . . . . . 12 6 13 43 . AOE 794 | . 26 20 79 . . 221 295 . 153 . Terrain Rammed . | . . . . . . . . . . . Walls Destroyed . | . . . . . . . . . . . Machines Disabled . | . . . . . . . . . . . Actions | -11 -10 -10 -10 -9 -9 -6 -5 -5 -5 -5 --------- Run | Yrd Mat Min Sub Rec Scr Fac Fac Was Fac Ext Total 9363 | 132 597 545 557 194 2047 2040 1485 448 1007 311 Wait 523 | . 1 60 2 5 174 81 51 39 86 24 Move 7752 | 90 497 466 493 176 1789 1495 1267 372 822 285 Hop . | . . . . . . . . . . . Pick Up 146 | 1 15 3 4 1 35 49 27 3 8 . Fast Attach 69 | 7 2 . . . 2 28 20 4 6 . Attach 63 | . . . 2 . 1 40 15 1 4 . Detach 27 | . 2 . . . 1 8 16 . . . Swap 151 | . 8 6 16 2 8 77 14 8 12 . Drop 146 | . 5 5 7 2 37 53 27 6 4 . Fire 476 | 34 66 5 33 8 . 206 48 15 61 . Melee . | . . . . . . . . . . . Ram 6 | . . . . . . . . . 4 2 Kick 3 | . . . . . . 3 . . . . Crush 1 | . 1 . . . . . . . . . Escape Stasis . | . . . . . . . . . . . Rewire . | . . . . . . . . . . . Trap . | . . . . . . . . . . . Miscellaneous . | . . . . . . . . . . . Route ------- -11/Scrapyard -10/Materials (discovered 3 exits: [*Mat x2] / *Min) -10/Mines (discovered 2 exits: [*Mat] / *Sub) -10/Subcaves -9/Recycling -9/Scraptown (discovered 2 exits: *Fac x2) -6/Factory (discovered 3 exits: *Fac / *Low x2) -5/Factory -5/Waste -5/Factory (discovered 2 exits: [*Fac] / *Ext) -5/Extension History --------- Turn | Location | Event 7 | -11/Scrapyard | Discovered new exit (range 16) 246 | -11/Scrapyard | Entered Materials 313 | -10/Materials | Build established: Mutant 522 | -10/Materials | Discovered new exit (range 10) 557 | -10/Materials | Discovered new exit (range 15) 831 | -10/Materials | Discovered new exit (range 8) 1250 | -10/Materials | Entered Mines 1253 | -10/Mines | Received a Mining Laser from a helpful Derelict 1289 | -10/Mines | Discovered new exit (range 12) 1315 | -10/Mines | Met a Derelict who couldn't figure out how to use a Trap Extractor 1512 | -10/Mines | Met a Derelict shopkeep closing up shop 1666 | -10/Mines | Learned Materials emergency access door positions 1822 | -10/Mines | Assisted by bots powering up and referring to "LRC-V3" 2001 | -10/Mines | Discovered new exit (range 6) 2082 | -10/Mines | Entered Subcaves 2082 | -10/Subcaves | Accompanied by 5 allies 2087 | -10/Subcaves | Led the pair of lost Derelicts to an unsafe place 2466 | -10/Subcaves | Build established: Scavenger-Mutant 2512 | -10/Subcaves | Ambushed by Subdweller buried in earth 2512 | -10/Subcaves | Ambushed by Subdweller buried in earth 2690 | -10/Subcaves | Ambushed by Subdwellers from Twisted Machinery 2696 | -10/Subcaves | Core integrity fell below 50% 2742 | -10/Subcaves | Visited 4L-MR0's lab 2758 | -10/Subcaves | Found Cargo Legs 2938 | -10/Subcaves | Discovered new exit (range 15) 2988 | -10/Subcaves | Entered Recycling 2988 | -9/Recycling | Accompanied by 2 allies 3249 | -9/Recycling | Scanned before Scraplab entrance 3283 | -9/Recycling | Entered Scraplab 3296 | -9/Recycling | Discovered new exit (range 3) 3302 | -9/Recycling | Entered Scraptown 3302 | -9/Scraptown | Accompanied by 2 allies 3304 | -9/Scraptown | System corruption cleaned by C-Scrubber 3398 | -9/Scraptown | Visited Bundlers 3521 | -9/Scraptown | Scanned Subdweller tech in exchange for log data 3525 | -9/Scraptown | Learned location of Extension (-5) 3526 | -9/Scraptown | Learned Research stockpile data 3620 | -9/Scraptown | Visited UFD Registry 3620 | -9/Scraptown | Registered with UFD as "Thunderface" 3711 | -9/Scraptown | Discovered new exit (range 13) 3746 | -9/Scraptown | Guru changed UFD alias to "Electromech" 3814 | -9/Scraptown | Heard Great Nut preacher, LISTEN AND RECITE! 4213 | -9/Scraptown | Attached Cargo Legs, gained temporary slots: Utility x2 4289 | -9/Scraptown | Visited The Evicted 4333 | -9/Scraptown | Visited Scrapoid Research Area 4377 | -9/Scraptown | Visited Cartography Club 4406 | -9/Scraptown | Visited Junk Repository 4483 | -9/Scraptown | Visited A0-MCA Data Center 4493 | -9/Scraptown | Given a B+ rating by A0-MCA 4498 | -9/Scraptown | Found A0-MCA's Component Scanner 4518 | -9/Scraptown | Build established: Mutant 4543 | -9/Scraptown | Visited Infowarlord's Domain 4553 | -9/Scraptown | Found Exp. Terrain Scan Processor 4582 | -9/Scraptown | Visited Junk Repository 4608 | -9/Scraptown | Visited Junk Cannon Lab 4935 | -9/Scraptown | Visited Botcube Research 5159 | -9/Scraptown | Found Botcube 5470 | -9/Scraptown | Discovered new exit (range 15) 5489 | -9/Scraptown | Found Scrap Suit 5614 | -9/Scraptown | Botcube activated 5626 | -9/Scraptown | Botcube completed mutation into treaded form (unarmed). 5951 | -9/Scraptown | Met Optimus 5951 | -9/Scraptown | Accepted into 0bPrime 6036 | -9/Scraptown | Entered Factory 6036 | -6/Factory | Accompanied by 3 allies 6036 | -6/Factory | Evolved 8 slots: Power x1, Propulsion x3, Utility x2, Weapon x2 6325 | -6/Factory | Loaded intel: 8 recycling unit locations 6545 | -6/Factory | Identified exit to Lower Caves 6608 | -6/Factory | Garrison activated, responded to threat 6620 | -6/Factory | Scrapoid reinforcements arrived 6667 | -6/Factory | Lost 5 allies 6697 | -6/Factory | Crushed by falling debris 6926 | -6/Factory | Build established: Scavenger-Tank 6964 | -6/Factory | Garrison activated, responded to threat 7027 | -6/Factory | Lost 7 parts (1p2n3u1w) 7736 | -6/Factory | Build established: Scavenger-Gunner 7786 | -6/Factory | First assault squad dispatched 7820 | -6/Factory | Discovered new exit (range 10) 7930 | -6/Factory | Core integrity fell below 50% 8100 | -6/Factory | Destroyed 10 combat bots 8103 | -6/Factory | Lost 7 parts (2n2u3w) 8135 | -6/Factory | Found Prototype Launcher 8135 | -6/Factory | Identified Scatter Rocket Array 8149 | -6/Factory | System corruption reached 10% 8209 | -6/Factory | Lost 3 parts (2n1w) 8240 | -6/Factory | Core integrity fell below 20% 8372 | -6/Factory | Learned location of Protoforge (-3) 8628 | -6/Factory | High security lockdown imminent 8675 | -6/Factory | Destroyed 10 combat bots 8676 | -6/Factory | Lost 3 parts (1p1u1w) 8708 | -6/Factory | High security lockdown engaged 8813 | -6/Factory | Entered another Factory area 8813 | -5/Factory | Evolved 2 slots: Utility x2 8873 | -5/Factory | Loaded intel: 8 recycling unit locations 9036 | -5/Factory | Repaired Assault Rifle 9113 | -5/Factory | First assault squad dispatched 9113 | -5/Factory | Lost 3 parts (1n2w) 9184 | -5/Factory | Found Exp. Targeting Computer 9187 | -5/Factory | Found Exp. Targeting Computer 9191 | -5/Factory | Found Exp. Targeting Computer 9231 | -5/Factory | Spotted B-75 Beast 9267 | -5/Factory | Lost 4 parts (2n2w) 9445 | -5/Factory | Fabricated Cmb. Airjet (x2) 9461 | -5/Factory | Destroyed 14 combat bots 9769 | -5/Factory | Sucked down chute 9769 | -5/Factory | Entered Waste 9769 | -5/Waste | The area was eerily silent 10058 | -5/Waste | Discovered new exit (range 13) 10092 | -5/Waste | Entered Factory 10106 | -5/Factory | Build established: Hacker-Gunner 10310 | -5/Factory | Garrison activated, responded to threat 10692 | -5/Factory | First assault squad dispatched 10725 | -5/Factory | Build established: Scavenger-Gunner 10735 | -5/Factory | Scraphulk reinforcements arrived 10851 | -5/Factory | System corruption reached 10% 10870 | -5/Factory | Core integrity fell below 50% 10885 | -5/Factory | Discovered new exit (range 16) 10893 | -5/Factory | Core integrity fell below 20% 10909 | -5/Factory | Discovered new exit (range 16) 10916 | -5/Factory | Entered Extension 10943 | -5/Extension | Lost 19 parts (2p5n5u7w) 11035 | -5/Extension | Spotted B-75 Beast 11061 | -5/Extension | Build established: Mutant 11085 | -5/Extension | Destroyed by Y-64 Sentinel with Wave Gun Last Messages --------------- GOAL=ESCAPE 10924_ System corrupted: Component data lost. 10930_ Penetrated by Slug. 10942_ System corrupted: Matter fused (-5). 10958_ System corrupted: IFF burst signal emitted. 10963_ Penetrated by Slug. 10963_ Slammed into U-05 Engineer. 10970_ Connecting with Door Terminal... 10970_ Current location identified: Extension 10970_ ALERT: Suspicious activity at Terminal E010. Dispatching Investigation squad. 10976_ System corrupted: Matter fused (-8). 10979_ Acquired 4 matter. 11000_ K-01 Serf exits Transfer Station. 11001_ 7TZ MCD8PGTK|OL%T/T D 11039_ System corrupted: Matter fused (-5). 11060_ 00LEW=EPDZA IPDI,8FZ#LA<=2